{"text_format":"3","workbook":"xlsx","n_sheets":1,"sheets":["打印版"],"not_rendered":{"defined_names":3},"read":"whole","date_system":"1900"}

{"sheet":"打印版","index":0,"n_rows":113,"n_cols":11,"rows_kept":113,"merged":[[1,0,1,10],[2,0,2,10],[3,0,4,0],[3,1,4,1],[3,2,4,2],[3,3,4,3],[3,4,4,4],[3,5,4,5],[3,6,3,8],[3,9,4,9],[3,10,4,10],[3,11,4,11],[7,1,8,1],[9,1,11,1],[12,1,13,1],[14,1,17,1],[18,1,19,1],[22,1,26,1],[27,1,28,1],[29,1,32,1],[34,1,36,1],[42,1,43,1],[44,1,45,1],[50,1,51,1],[52,1,53,1],[62,1,63,1],[64,1,65,1],[66,1,67,1],[74,1,75,1],[80,1,82,1],[84,1,86,1],[89,1,90,1],[91,1,93,1],[99,1,101,1],[103,1,104,1],[105,1,106,1],[112,0,112,4]]}
["附件1"]
["扶绥县2023年引进优秀人才岗位表"]
["日期：2023年3月10日"]
["序号","招聘单位         ","岗位名称","单位性质","岗位工作","招聘人数","报考资格、条件",null,null,"任职资格要求","备注（其他要求）"]
[{"$nulls":6},"专业要求","学历学位","政治面貌"]
[{"$f":"ROW()-5","v":1},"中共扶绥县委员会办公室","岗位1","行政机关","负责综合材料撰写",3,"哲学类、经济学类、社会学类、政治学类、中国汉语言文学及文秘类、外国语言文学类、计算机科学与技术类、电气、电子及自动化类、工商管理类、公共管理类、会计学类、新闻传播学类、图书情报与档案管理类","全日制本科以上，学士学位以上","中共党员"]
[{"$f":"ROW()-5","v":2},"扶绥县人民政府办公室","岗位1","行政机关","负责文秘类相关工作",1,"中国语言文学及文秘类、财政学类、金融学类、审计学类、计算机科学与技术类、财政学类、统计学类、会计学类、交通运输类、法学类、法律类、水利类、土木类","全日制本科以上，学士学位以上","不限","熟练操作电脑办公软件"]
[3,"扶绥县政协办公室","岗位1","行政机关","协助农业农村委相关工作",1,"农林经济管理类、自然保护与环境生态类、农业工程类","全日制本科以上，学士学位以上","不限"]
[4,null,"岗位2","行政机关","协助调研和委员联络委相关工作",1,"中国汉语言文学及文秘类","全日制本科以上，学士学位以上","不限","有一定的文字功底和写作能力"]
[5,"中共扶绥县委统战部","岗位1","行政机关","负责非公服务工作",1,"物流管理与工程类","全日制本科以上，学士学位以上","不限","熟悉操作电脑办公软件"]
[6,null,"岗位2","行政机关","负责财务管理工作",1,"会计学类","全日制本科以上，学士学位以上","不限","熟练操作电脑办公软件"]
[7,null,"岗位3","行政机关","负责宣传工作",1,"新闻传播学类","全日制本科以上，学士学位以上","不限","熟练操作电脑办公软件"]
[8,"中共扶绥县委组织部","岗位1","行政机关","从事综合文稿写作工作",2,"政治学类、中国汉语言文学及文秘类","全日制研究生以上，硕士学位以上","中共党员","35周岁以下"]
[9,null,"岗位2","行政机关","从事综合文稿写作、办公室日常等工作",2,"中国汉语言文学及文秘类","全日制本科以上，学士学位以上","中共党员"]
[10,"中共扶绥县委宣传部","岗位1","行政机关","负责活动策划、材料撰写等工作",1,"新闻传播学类","全日制本科以上，学士学位以上","不限","熟练操作电脑办公软件"]
[11,null,"岗位2","行政机关","负责版权管理相关工作",1,"法学类、公共管理类","全日制本科以上，学士学位以上","不限"]
[{"$f":"ROW()-5","v":12},null,"岗位3","行政机关","负责宣传文化、活动策划等工作",1,"传播学、网络与新媒体","全日制本科以上，学士学位以上","不限"]
[13,null,"岗位4","行政机关","负责日常工作、综合文稿写作等工作",1,"汉语言文学、汉语国际教育、秘书学、新闻学","全日制本科以上，学士学位以上","不限"]
[14,"中共扶绥县纪律检查委员会","岗位1","行政机关","负责文稿写作等工作",1,"法学类","全日制本科以上，学士学位以上","中共党员","要求为男性","队伍结构调整需要。"]
[15,null,"岗位2","行政机关","负责文稿写作等工作",1,"中国汉语言文学及文秘类","全日制本科以上，学士学位以上","中共党员","要求为男性","队伍结构调整需要。"]
[16,"中共扶绥县委员会扶绥县人民政府信访局","岗位1","行政机关","负责接访相关工作",1,"公安学类、中国汉语言文学及文秘类、法学类、会计学类、统计学类","全日制本科以上，学士学位以上","不限","熟练操作电脑办公软件"]
[17,"扶绥县委县政府督查考评局","岗位1","行政机关","负责督查考评相关工作",1,"计算机科学与技术类","全日制本科以上，学士学位以上","不限","熟练操作电脑办公软件"]
[18,"广西中国—东盟青年产业园项目服务中心","岗位1","事业单位（全额）","负责项目入园选址测绘等相关工作",1,"测绘科学与技术类、地理科学类","全日制本科以上，学士学位以上","不限","30周岁以下"]
[19,null,"岗位2","事业单位（全额）","负责园区相关数据统计工作",1,"统计学类","全日制本科以上，学士学位以上","不限","30周岁以下"]
[20,null,"岗位3","事业单位（全额）","负责园区化工项目引进及服务工作",1,"化学类、化工与制药技术类","全日制本科以上，学士学位以上","不限","30周岁以下"]
[21,null,"岗位4","事业单位（全额）","负责合同审查、劳动纠纷调解等相关工作",1,"法学类、法律类","全日制本科以上，学士学位以上","不限","30周岁以下"]
[22,null,"岗位5","事业单位（全额）","负责协助管委会各部门做好日常综合材料撰写、收发文等相关工作。",2,"新闻传播学类、政治学类","全日制本科以上，学士学位以上","不限","30周岁以下"]
[23,"中国-东盟南宁空港扶绥经济区管理委员会","岗位1","事业单位（全额）","负责招商引资工作",2,"管理科学与工程类、工商管理类、法学类","全日制本科以上，学士学位以上","不限","适合男性","队伍结构调整需要。"]
[24,null,"岗位2","事业单位（全额）","负责撰写综合材料工作",1,"中国汉语言文学及文秘类、经济学类","全日制本科以上，学士学位以上","不限","适合男性","队伍结构调整需要。"]
[25,"扶绥县木业家居产业集聚区项目服务中心","岗位1","事业单位（全额）","负责园区经济运行分析、产值统计、财务等工作",1,"统计学类、经济学类、金融学类、会计学类","全日制本科以上，学士学位以上","不限"]
[26,null,"岗位2","事业单位（全额）","负责园区企业劳务纠纷，招商引资合同草拟、安全生产等工作",1,"法学类、法律类、安全科学与工程类","全日制本科以上，学士学位以上","不限"]
[27,null,"岗位4","事业单位（全额）","负责园区规划建设、环境保护等工作",1,"测绘科学与技术类、建筑类、环境科学与工程类、地理科学类","全日制本科以上，学士学位以上","不限"]
[28,null,"岗位5","事业单位（全额）","负责工程类相关工作",1,"土木类、管理科学与工程类、林学及林业工程类","全日制本科以上，学士学位以上","不限"]
[29,"扶绥县民政局","岗位1","行政机关","负责社会救助工作",1,"公共管理类","全日制本科以上，学士学位以上","不限"]
[30,"扶绥县乡村振兴局","岗位1","行政机关","负责办公室日常工作",1,"公共管理类","全日制本科以上，学士学位以上","不限","熟练操作电脑办公软件"]
[{"$f":"ROW()-5","v":31},null,"岗位2","行政机关","负责防贫监测信息工作",1,"计算机科学与技术类","全日制本科以上，学士学位以上","不限","熟练操作电脑办公软件"]
[32,null,"岗位3","行政机关","负责项目管理工作",1,"管理科学与工程类、农业工程类","全日制本科以上，学士学位以上","不限","熟练操作电脑办公软件"]
[33,"扶绥县机关后勤服务中心","岗位1","事业单位（参公）","负责综合材料写作工作",1,"电气、电子及自动化类","全日制本科以上，学士学位以上","不限","熟练操作电脑办公软件"]
[34,"扶绥县地方志编纂委员会办公室","岗位1","事业单位（全额）","负责文字编辑及办公室相关工作",1,"哲学类、经济学类、社会学类、马克思主义理论类","全日制本科以上，学士学位以上","不限","熟练操作电脑办公软件"]
[35,"扶绥县民族宗教服务中心","岗位1","事业单位（参公）","负责民族、宗教工作",1,"民族学类、哲学类","全日制本科以上，学士学位以上","不限","最好会翻译壮文"]
[36,"扶绥县残疾人联合会","岗位1","事业单位（全额）","负责残疾人就业管理、财务方面相关工作",1,"工商管理类","全日制本科以上，学士学位以上","不限","熟练操作电脑办公软件"]
[37,"中共扶绥县委党校","岗位1","事业单位（参公）","负责教学、科研工作",1,"哲学类、经济学类、法学类、社会学类、马克思主义理论类","全日制本科以上，学士学位以上","不限","同等条件下，中共党员、师范类院校毕业生优先"]
[38,"扶绥县人力资源和社会保障局","岗位1","行政机关","从事综合文稿写作、办公室日常等工作",1,"法学类、法律类","全日制本科以上，学士学位以上","不限"]
[39,null,"岗位2","行政机关","负责人事档案管理工作",1,"图书情报与档案管理类","全日制本科以上，学士学位以上","中共党员"]
[40,"中国共产党扶绥县委员会机构编制委员会办公室","岗位1","行政机关","负责法律咨询相关工作",1,"法学类","全日制本科以上，学士学位以上","不限","熟练操作电脑办公软件"]
[{"$f":"ROW()-5","v":41},null,"岗位2","行政机关","负责党组织建设工作",1,"计算机科学与技术类","全日制本科以上，学士学位以上","中共党员","熟练操作电脑办公软件"]
[42,"扶绥县就业服务中心","岗位1","事业单位（参公）","负责撰写材料及就业相关工作",1,"新闻传播学类、工商管理类","全日制本科以上，学士学位以上","不限","有一定的写作能力"]
[43,"扶绥县妇女联合会","岗位1","行政机关","负责办公室日常工作",1,"教育学类、社会学类、旅游管理类、工商管理类、经济学类","全日制本科以上，学士学位以上","不限","熟练操作电脑办公软件"]
[44,"共青团扶绥县委员会","岗位1","行政机关","负责办公室及管理工作",1,"新闻传播学类、公共管理类、政治学类、社会学类","全日制本科以上，学士学位以上","共青团员","熟练操作电脑办公软件"]
[45,"扶绥县社会保险事业中心","岗位1","事业单位（参公）","负责数智人社系统管理等工作",1,"计算机科学与技术类","全日制本科以上，学士学位以上","不限","熟练操作电脑办公软件"]
[46,"扶绥县融媒体中心","岗位1","事业单位（全额）","记者",1,"新闻传播学类","全日制本科以上，学士学位以上","不限","30周岁以下"]
[47,null,"岗位2","事业单位（全额）","办公室",1,"中国汉语言文学及文秘类","全日制本科以上，学士学位以上","不限","熟练操作电脑办公软件"]
[48,"扶绥县教育局","岗位1","事业单位（全额）","负责基建项目管理相关工作",1,"土木类、建筑类、管理科学与工程类","全日制本科以上，学士学位以上","不限","熟练操作电脑办公软件"]
[49,null,"岗位2","事业单位（全额）","负责信息约稿、信访事项答复、“互联网+监管”事项目录清单处理、心理健康教育、家校联系教育、股室业务宣传等相关工作",1,"教育学类、公共管理类、心理学类","全日制本科以上，学士学位以上","不限","熟练操作电脑办公软件"]
[50,"扶绥县文化旅游体育广电局","岗位1","行政机关","负责组织拟定文化、旅游、广播电视和体育发展规划，指导全域旅游、工业旅游、乡村旅游、文旅项目，组织招商引资等工作",1,"城乡规划管理、地理学类、旅游管理、文化产业管理、电子商务、旅游规划","全日制本科以上，学士学位以上","不限","熟练操作电脑办公软件"]
[{"$f":"ROW()-5","v":51},"扶绥县劳动保障监察大队","岗位1","事业单位（参公）","负责劳动力保障维权材料的撰写",1,"法学类、法律类","全日制本科以上，学士学位以上","不限"]
[52,"扶绥县卫生健康局","岗位1","行政机关","人口与家庭发展\n服务相关工作",1,"社会学类","全日制本科以上，学士学位以上","不限"]
[53,"扶绥县疾病预防控制中心","岗位1","事业单位（全额）","从事疾病健康管理工作",1,"公共事业管理\n（卫生事业管理方向）","全日制本科以上，学士学位以上","中共党员"]
[54,"扶绥县卫生计生监督所","岗位1","事业单位（全额）","负责卫生监督相关工作",1,"法学类、临床医学类、公共卫生与预防医学类、中医学类、中西医结合类、口腔医学类、护理类、口腔医学技术","全日制本科以上，学士学位以上","不限"]
[55,"扶绥县皮防站","岗位1","事业单位（全额）","门诊医生",1,"临床医学","全日制本科以上，学士学位以上","不限","具备初级专业技术资格证书（执业医师证）"]
[56,"扶绥县医疗保障局","岗位1","行政机关","负责行政办公室相关工作",1,"基础医学类、公共卫生与预防医学类","全日制本科以上，学士学位以上","不限","熟练操作电脑办公软件"]
[57,"扶绥县医疗保险服务中心","岗位1","事业单位（全额）","负责定点医疗机构医保审核",1,"基础医学类、临床医学类、中医学类","全日制本科以上，学士学位以上","不限","熟练操作电脑办公软件"]
[58,"扶绥县人民检察院","岗位1","行政机关","从事检察辅助工作，协助检察官履行检察职责",1,"法学类、法律类","全日制本科以上，学士学位以上","不限"]
[59,null,"岗位2","行政机关","从事综合文稿写作及司法行政相关工作",1,"哲学类、政治学类、马克思主义理论类、新闻传播学类、教育学类","全日制本科以上，学士学位以上","不限"]
[60,"扶绥县人民法院","岗位1","行政机关","负责审判辅助工作",1,"法学类","全日制本科以上，学士学位以上","不限","通过国家法律资格考试取得C类以上证书"]
[{"$f":"ROW()-5","v":61},null,"岗位2","行政机关","负责计算机及网络维护管理工作",1,"计算机科学与技术类","全日制本科以上，学士学位以上","不限","队伍结构，调整需要，男性为佳"]
[62,"扶绥县司法局","岗位1","行政机关","参与政府法律事务相关工作",1,"法学类、法律类","全日制本科以上，学士学位以上","不限"]
[63,null,"岗位2","行政机关","参与社区矫正对象管理工作",1,"法学类","全日制本科以上，学士学位以上","不限","适合男性","队伍结构调整需要。"]
[64,"扶绥县劳动人事争议调解仲裁院","岗位1","事业单位（全额）","负责法律文书的撰写",1,"法学类、法律类","全日制本科以上，学士学位以上","不限"]
[65,"扶绥县公安局交通警察大队","岗位1","行政机关","负责公文写作及宣传工作",1,"计算机科学与技术类","全日制本科以上，学士学位以上","不限","擅长公文写作，性格开朗，有较好沟通与协调能力"]
[66,"扶绥县退役军人服务中心","岗位1","事业单位（全额）","负责拥军优属拥政爱民工作、宣传工作",1,"国防教育与管理、新闻学、新闻传播学","全日制本科以上，学士学位以上","不限","熟练操作电脑办公软件"]
[67,"扶绥县消防救援大队","岗位1","行政机关","负责各类消防宣传工作",1,"新闻传播学类","全日制本科以上，学士学位以上","不限"]
[68,"扶绥县住房和城乡建设局","岗位1","行政机关","负责监督管理辖区燃气市场，负责燃气企业网点的选址、布局、迁移审核审批工作，需深入乡镇、村屯开展依法查处燃气市场的违法违规行为；负责燃气设施改动审批工作；遇紧急突发事故，组织开展燃气安全事故调查等工作",1,"土木工程、城市燃气工程、电气工程及其自动化","全日制本科以上，学士学位以上","不限","从事5年以上燃气工作经验可以放宽条件，学士学位。适合男性。"]
[69,"扶绥县村镇建设管理所","岗位1","事业单位（全额）","负责股室项目建设管理工作",1,"土木工程","全日制本科以上，学士学位以上","不限","熟练操作电脑办公软件、CAD软件、工程造价软件、具备初级专业资格证书"]
[70,"扶绥县发展和改革局","岗位1","行政机关","负责粮油质量检验工作",1,"食品科学与工程、食品质量与安全","全日制本科以上，学士学位以上","不限"]
[71,null,"岗位2","行政机关","负责项目审批和管理相关工作",1,"项目管理、管理科学工程、工程造价管理","全日制本科以上，学士学位以上","不限"]
[72,"扶绥县城乡综合执法管理局","岗位1","行政机关","行政执法工作",1,"法学类、公共管理类、财务管理","全日制本科以上，学士学位以上","不限"]
[73,"扶绥县市场监督管理局","岗位1","行政机关","负责药品监管工作",1,"工业工程类、机械类、药学类","全日制本科以上，学士学位以上","不限"]
[{"$f":"ROW()-5","v":74},"扶绥县统计局","岗位1","行政机关","指导企业完善统计台账等工作",1,"统计学类","全日制本科以上，学士学位以上","不限"]
[75,"崇左市扶绥生态环境局","岗位1","行政机关","负责环境综合管理相关工作",1,"环境工程","全日制研究生以上，硕士学位以上","不限","35周岁以下，熟练操作电脑办公软件"]
[76,"扶绥县农业农村局","岗位1","行政机关","负责实验室检测工作",1,"植物生产、保护及草学类、食品科学与工程类、化学类、生物科学及技术类","全日制研究生以上，硕士学位以上","不限","35周岁以下，熟练实验室检测技术及操作电脑办公软件"]
[77,null,"岗位2","行政机关","负责土肥水技术推广和指导",1,"自然保护与环境生态类","全日制研究生以上，硕士学位以上","不限","熟练操作电脑办公软件"]
[78,null,"岗位3","行政机关","负责动物疫病监测、动物检疫等防控工作",1,"动物生产与水产类、动物医学类","全日制本科以上，学士学位以上","不限","熟练操作电脑办公软件"]
[79,"扶绥县糖业发展办公室","岗位1","行政机关","负责办公室日常相关工作",1,"植物生产、保护及草学类","全日制本科以上，学士学位以上","不限"]
[80,"扶绥县自然资源局","岗位1","行政机关","负责国土空间规划、地理信息管理等相关工作",1,"地理科学类、建筑类","全日制本科以上，学士学位以上","不限"]
[81,null,"岗位2","行政机关","负责自然资源管理相关工作",1,"土地资源管理、城市管理、自然资源登记与管理","全日制本科以上，学士学位以上","不限"]
[{"$f":"ROW()-5","v":82},null,"岗位4","行政机关","负责法律法规相关工作",1,"法学类、法律类","全日制本科以上，学士学位以上","不限"]
[83,"扶绥县水利局","岗位1","行政机关","负责工程类相关工作",1,"水利类、土木类","全日制本科以上，学士学位以上","不限","熟练操作电脑办公软件"]
[84,"扶绥县林业局","岗位1","行政机关","负责营造林木等相关工作",1,"林学及林业工程类、法学类、法律类","全日制本科以上，学士学位以上","不限","熟悉操作办公软件"]
[85,"扶绥县水库和扶贫易地安置中心","岗位1","事业单位（参公）","负责易地搬迁股相关工作",1,"计算机科学与技术类、土木类、水利类、测绘科学与技术类","全日制本科以上，学士学位以上","不限","熟练操作电脑办公软件"]
[86,null,"岗位2","事业单位（参公）","负责处理相关法律纠纷事物、信访等相关工作",1,"法学类、法律类","全日制本科以上，学士学位以上","不限"]
[87,"扶绥县工业和信息化局","岗位1","行政机关","从事冶金、建材等行业管理和指导服务工作",1,"材料及冶金类、仪表仪器及测试技术类、土木类","全日制本科以上，学士学位以上","不限"]
[88,null,"岗位2","行政机关","从事化工、制药等行业管理和指导服务工作",1,"化学类、化工与制药技术类、生物工程类","全日制本科以上，学士学位以上","不限"]
[{"$f":"ROW()-5","v":89},null,"岗位3","行政机关","从事电气和电子信息行业管理和指导服务工作",1,"电气、电子及自动化类；计算机科学与技术类","全日制本科以上，学士学位以上","不限"]
[90,"扶绥县节能监察中心","岗位1","事业单位（全额）","从事节能监察与考核、清洁生产审核与评估、资源综合利用及节能项目评估审核与监管相关工作",1,"环境科学与工程类、能源动力及工程热物理类、物理学类","全日制本科以上，学士学位以上","不限"]
[91,"扶绥县交通运输局","岗位1","事业单位（全额）","负责工程类相关工作",1,"土木类、交通运输类","全日制本科以上，学士学位以上","不限","熟练操作电脑办公软件"]
[92,"扶绥县应急管理局","岗位1","行政机关","协助安全生产综合性业务工作",1,"机械类、仪表仪器及测试技术类、材料及冶金类、能源动力及工程热物理类、电气、电子及自动化类、化工与制药技术类、地质类、矿业类、安全科学与工程类、管理科学与工程类","全日制本科以上，学士学位以上","不限"]
[93,"扶绥县商务和服务业发展局","岗位1","行政机关","负责服务业发展相关工作",1,"经济学类","全日制本科以上，学士学位以上","不限","熟练操作电脑办公软件"]
[94,"扶绥县供销社","岗位1","事业单位（参公）","负责业务工作",1,"市场营销、工商管理","全日制本科以上，学士学位以上","不限","熟练操作电脑办公软件"]
[95,"扶绥县财政局","岗位1","行政机关","负责财政法律相关工作",1,"法学类、法律类","全日制本科以上，学士学位以上","不限"]
[96,null,"岗位2","行政机关","负责财政宏观管理相关工作",1,"经济学类","全日制本科以上，学士学位以上","不限"]
[97,null,"岗位3","行政机关","负责财务相关工作",1,"财政学类、金融学类","全日制本科以上，学士学位以上","不限"]
[98,"扶绥县审计局","岗位1","行政机关","从事竣工决算审计、工程造价审计、工程建设管理审计、征地拆迁和移民审计、投资绩效审计等相关工作",1,"工程审计、土木工程、工程造价、水利与交通工程、工程管理","全日制本科以上，学士学位以上","不限"]
[{"$f":"ROW()-5","v":99},"广西扶绥同正投融资集团有限公司","岗位1","国有企业","负责纪检监察室一般文稿的起草，做好材料的收集打印及各种信息的汇总统计和上报工作；协助做好督查工作。",1,"法律类","全日制本科以上，学士学位以上","中共党员"]
[100,null,"岗位2","国有企业","负责公司本部及各子公司合同的起草、审核、修改；对涉法事务提出法律意见；审核修改法律文书；负责协调处理公司诉讼纠纷案件。",1,"法学类、法律类","全日制本科以上，学士学位以上","不限"]
[101,"广西扶绥同正投融资集团有限公司","岗位3","国有企业","从事人力资源管理相关工作",1,"工商管理类","全日制本科以上，学士学位以上","不限","1.35周岁以下，熟悉电脑办公软件及Excel运用的。\n2.2年以上人力资源相关工作经验优先"]
[102,null,"岗位4","国有企业","负责策划及管理工作",1,"经济学类、工商管理类","全日制本科以上，学士学位以上","不限"]
[103,"广西扶绥县城市开发投资有限公司","岗位1","国有企业","负责投融资相关工作",1,"经济学类、金融学类、工商管理类、电子商务类","全日制本科以上，学士学位以上","不限","1.有2年以上相关工作经验，了解投资工作方式方法；\n2.组织协调能力强，配合部门做好融资项目跟踪、记录、反馈工作等；\n3.年龄在35周岁以下。"]
[104,"广西空港投资开发有限责任公司","岗位1","国有企业","负责资产管理类相关工作",1,"资产评估与管理","全日制本科以上，学士学位以上","不限","至少有三年以上资产评估与管理方面的工作经验；熟悉资产管理的工作流程和环节；熟悉办公自动化软件操作，有良好的沟通和书面表达能力。"]
[105,"扶绥县润农投资发展有限责任公司","岗位1","国有企业","负责项目开发工作",1,"农业工程、土木工程、水利工程、农业水利工程、土地整治工程、农业工程学、农田水利工程","全日制本科以上，学士学位以上","不限"]
[106,"广西扶绥同正数字科技有限公司","岗位1","国有企业","负责策划及市场营销管理工作",1,"广告学、网络与新媒体、新闻传播学、媒体策划与管理、市场开发与营销、营销与策划、市场营销、广告与会展、\t电子商务、商务数据分析与应用、跨境电子商务、电子商务及法律","全日制本科以上，学士学位以上","不限","1.有2年以上电商市场开发经验或互联网行业销售经验及团队负责人管理经验优先；\n2.有一定的社会资源，熟悉城市政策，具备住宅、高校、医院、产业园区、政府机关办公楼等业态项目承接经验；\n3.具备一定的市场研究、市场调查、市场推广及市场活动策划能力；\n4.有良好的组织、协调、沟通能力和团队协作精神，善于团队建设、管理，具备一定的抗压能力。","35周岁以下，特别优秀者可放宽条件，需熟悉电脑办公软件及Excel运用。"]
[107,"广西扶绥万年青投资有限公司","岗位1","国有企业","负责老年服务、殡葬技术相关工作",1,"老年服务与管理、现代殡葬技术与管理","全日制本科以上，学士学位以上","不限"]
["合计",{"$nulls":4},{"$f":"SUM(F6:F112)","v":113}]